Cogmind - Beta 11.1 @@@ ROGUE MODE // 2022.11.17 @ 01:01:53 Player: Rushional Result: Destroyed by as-04450 with Assembled Rifle Performance ------------- Evolutions (0) 0 Regions Visited (4) 800 Robots Destroyed (19) 95 Value Destroyed (506) 506 Prototype IDs (5) 100 Alien Tech Used (0) 0 Bonus (300) 300 TOTAL SCORE: 1801 Bonus ------- Aligned with FarCom 300 Cogmind --------- Core Integrity 0/250 Matter 280/300 Energy 95/100 System Corruption 2% Temperature Cool (0) Movement Walking (120) Location -9/Mines Parts ------- > --- POWER (1) -------- (None) > --- PROPULSION (2) --- Aluminum Leg Aluminum Leg > --- UTILITY (2) ------ Medium Storage Unit Targeting Computer > --- WEAPON (2) ------- Longsword +1 > --- INVENTORY (10) --- Aluminum Leg Aluminum Leg Aluminum Leg Heat Sink Medium Storage Unit Targeting Computer Targeting Computer Small Laser Peak State ------------ > --- POWER ------------ Light Ion Engine > --- PROPULSION ------- Aluminum Leg Aluminum Leg > --- UTILITY ---------- Medium Storage Unit Targeting Computer > --- WEAPON ----------- Small Laser Longsword +1 > --- INVENTORY -------- Ion Engine Aluminum Leg Aluminum Leg Aluminum Leg Heat Sink Medium Storage Unit Targeting Computer Targeting Computer Targeting Computer Small Laser [Rating: 15] Favorites ----------- Power Light Ion Engine Engine Light Ion Engine Propulsion Aluminum Leg Leg Aluminum Leg Utility Targeting Computer Device Cloak of Protection Storage Medium Storage Unit Processor Targeting Computer Weapon Small Laser Energy Gun Small Laser Ballistic Gun Assault Rifle Launcher Grenade Launcher Special Weapon Enhanced Flamer Slashing Weapon Longsword +1 Build | -11 -10 -10 -10 -9 ------- Run | Scr Mat Min Exi Min Slots Evolved . | . . . . . Power . | . . . . . Propulsion . | . . . . . Utility . | . . . . . Weapon . | . . . . . Parts Attached 36 | 7 8 14 5 2 Power 5 | 1 1 2 . 1 Engine 5 | 1 1 2 . 1 Core . | . . . . . Reactor . | . . . . . Propulsion 9 | 2 1 6 . . Treads . | . . . . . Leg 9 | 2 1 6 . . Wheel . | . . . . . Hover . | . . . . . Flight . | . . . . . Utility 7 | 2 2 . 3 . Device 2 | . . . 2 . Storage 4 | 2 1 . 1 . Processor 1 | . 1 . . . Hackware . | . . . . . Protection . | . . . . . Artifact . | . . . . . Weapon 15 | 2 4 6 2 1 Energy Gun 4 | . . 4 . . Energy Cannon . | . . . . . Ballistic Gun 5 | 2 2 . . 1 Ballistic Cannon . | . . . . . Launcher 3 | . 2 1 . . Special Weapon 1 | . . 1 . . Impact Weapon . | . . . . . Slashing Weapon 2 | . . . 2 . Piercing Weapon . | . . . . . Special Melee Weapon . | . . . . . Unidentified Prototypes 3 | . . . 3 . Parts Lost 10 | . . 7 . 3 Power 3 | . . 1 . 2 Propulsion 1 | . . 1 . . Utility . | . . . . . Weapon 6 | . . 5 . 1 Highest Loss Streak 5 | . . 5 . 2 To Critical Strikes . | . . . . . Average Slot Usage (%) 97 | . 98 94 99 97 Engine 13 | . 14 13 14 13 Leg 27 | . 28 27 28 28 Storage 13 | . 14 14 13 14 Processor 13 | . 12 14 14 14 Energy Gun 14 | . . 13 25 11 Ballistic Gun 6 | . 26 2 . . Special Weapon 1 | . . 7 . . Slashing Weapon 2 | . . . 2 14 Naked Turns . | . . . . . Heaviest Build 19 | 17 17 18 17 19 Greatest Support 20 | 20 20 20 20 20 Greatest Overweight (x) 1 | . . 1 . . Average Overweight (x) . | . . . . . Largest Inventory Capacity 10 | 8 10 10 10 10 Average Capacity 9 | 6 8 10 9 10 Most Carried 10 | 6 10 10 10 10 Average Carried 8 | 2 8 9 9 9 Final Capacity 10 | 8 10 10 10 10 Final Carried 10 | 6 10 10 10 8 Class Distribution -------------------- 50% | Scavenger-Mutant 49% | Mutant Dominant Class ---------------- Mutant | -10/Materials Mutant | -10/Mines Scavenger-Mutant | -10/Exiles Scavenger-Mutant | -9/Mines Resources | -11 -10 -10 -10 -9 ----------- Run | Scr Mat Min Exi Min Matter Collected 795 | 306 118 307 . 64 Remotely . | . . . . . Salvage Created 772 | 98 125 462 . 87 Parts 43 | 3 10 30 . . Haulers Intercepted 1 | . 1 . . . Recyclers Shooed 1 | . . 1 . . Parts Field Recycled . | . . . . . Retrieved Matter . | . . . . . Parts Self-Destructed . | . . . . . Prevented . | . . . . . Kills | -11 -10 -10 -10 -9 ------- Run | Scr Mat Min Exi Min Combat Hostiles Destroyed 17 | . 3 9 . 5 Melee 5 | . . . . 5 Guns 8 | . 2 6 . . AOE 4 | . 1 3 . . Classes Destroyed 6 | 1 2 2 . 1 Builder 3 | . . 3 . . Tunneler 1 | . . 1 . . Hauler 1 | . 1 . . . Recycler 2 | 1 . 1 . . Grunt 12 | . 3 9 . . Assembled 5 | . . . . 5 Best Kill Streak 3 | 1 3 3 . 3 Combat Bots Only 3 | . 2 3 . 3 Max Kills in Single Turn 2 | 1 2 1 . 1 Gunslinging . | . . . . . Exploded 1 | . 1 1 . . Melee 1 | . . . . 1 Uniques/NPCs Destroyed . | . . . . . Combat | -11 -10 -10 -10 -9 -------- Run | Scr Mat Min Exi Min Damage Taken 1463 | . 104 971 . 388 Core 256 | . . 165 . 91 Absorbed by Shields . | . . . . . Core Remaining (%) 100 | 100 . . . . Volleys Fired 67 | 6 12 49 . . Largest 2 | 2 2 2 . . Hottest 120 | 40 50 120 . . Shots Fired 115 | 12 24 79 . . Gun 95 | 12 21 62 . . Cannon . | . . . . . Launcher 7 | . 3 4 . . Special 13 | . . 13 . . Kinetic 61 | 12 21 28 . . Thermal 23 | . . 23 . . Explosive 7 | . 3 4 . . Electromagnetic 24 | . . 24 . . Robot Hit Streak 10 | 3 10 7 . . Robot Miss Streak 3 | 1 3 2 . . Penetration Max . | . . . . . Secondary Targets . | . . . . . Shots Hit Robots 82 | 8 16 51 . 7 Core Hits 40 | 2 9 26 . 3 Critical Kills . | . . . . . Critical Parts Destroyed . | . . . . . Critical Strikes . | . . . . . Melee Attacks 10 | . . . . 10 Impact . | . . . . . Slashing 10 | . . . . 10 Piercing . | . . . . . Sneak Attacks . | . . . . . Combat Hostiles . | . . . . . Follow-up Attacks . | . . . . . Damage Inflicted 1733 | 106 353 895 . 379 Guns 795 | 106 148 541 . . Cannons . | . . . . . Explosions 484 | . 205 279 . . Melee 379 | . . . . 379 Ramming . | . . . . . Kinetic 482 | 106 148 228 . . Thermal 219 | . . 219 . . Explosive 439 | . 205 234 . . Electromagnetic 214 | . . 214 . . Impact . | . . . . . Slashing 379 | . . . . 379 Piercing . | . . . . . Highest Corruption 2 | . 2 2 2 2 Average Corruption 2 | . 2 2 2 2 Corruption Purged . | . . . . . Corruption Blocked . | . . . . . Effects 25 | . 3 8 8 6 Message Errors 6 | . 1 . 3 2 Matter Fused 6 | . 1 2 2 1 Heat Flow Errors 4 | . 1 2 1 . Energy Discharges 1 | . . . . 1 Parts Rejected 1 | . . . . 1 Data Loss (minor) 4 | . . 1 2 1 Misfires 3 | . . 3 . . Overload Shots . | . . . . . Overflow Damage 70 | . . 13 . 57 Projectiles . | . . . . . Explosions 13 | . . 13 . . Melee 57 | . . . . 57 Knockbacks . | . . . . . Impact . | . . . . . Kinetic . | . . . . . Secondary . | . . . . . Self-Inflicted Damage 89 | . 8 81 . . Shots 5 | . 1 4 . . Rammed . | . . . . . Targets Rammed . | . . . . . Kicked . | . . . . . Crushed . | . . . . . Highest Temperature 278 | . 202 278 91 . Average Temperature 69 | . 82 68 54 . Received Heat Transfer 611 | . 54 537 . 20 Siege Activations . | . . . . . Robots Corrupted . | . . . . . Combat Hostiles . | . . . . . Parts Fried . | . . . . . Impact Corruptions . | . . . . . Robots Melted . | . . . . . Combat Hostiles . | . . . . . Parts Melted . | . . . . . Heat Transferred 835 | . . 835 . . Parts Sabotaged . | . . . . . Parts Stolen . | . . . . . Parts Stripped . | . . . . . Power Chain Reactions 1 | . . 1 . . Missiles Intercepted . | . . . . . Alert | -11 -10 -10 -10 -9 ------- Run | Scr Mat Min Exi Min Peak Influence 226 | 5 165 226 . 15 Initial 3 | . 3 . . . Average 89 | 1 105 138 . . Maximum Alert Level 1 | . . 1 . . Low Security (%) 81 | 100 100 50 . 100 Level 1 18 | . . 49 . . Level 2 . | . . . . . Level 3 . | . . . . . Level 4 . | . . . . . Level 5 . | . . . . . High Security . | . . . . . Max Security . | . . . . . Squads Dispatched 1 | . 1 . . . Investigation . | . . . . . Extermination . | . . . . . Reinforcement 1 | . 1 . . . Assault . | . . . . . Garrison . | . . . . . Intercept . | . . . . . Searches Triggered . | . . . . . Construction Impeded . | . . . . . Haulers Reinforced . | . . . . . Active Scanning Responses . | . . . . . Cargo Convoy Interrupts . | . . . . . Stealth | -11 -10 -10 -10 -9 --------- Run | Scr Mat Min Exi Min Distress Signals . | . . . . . Communications Jammed . | . . . . . Distress Signals . | . . . . . Times Spotted 34 | . 5 10 . 19 Peak Tracking Total 18 | . 2 5 . 18 Tactical Retreats 3 | . . 1 . 2 Traps | -11 -10 -10 -10 -9 ------- Run | Scr Mat Min Exi Min Traps Triggered 1 | . 1 . . . Indirectly . | . . . . . Trap Hack Attempts . | . . . . . Triggered . | . . . . . Disarmed . | . . . . . Reprogrammed . | . . . . . Reused . | . . . . . Traps Extracted . | . . . . . Installed . | . . . . . Triggered . | . . . . . Machines | -11 -10 -10 -10 -9 ---------- Run | Scr Mat Min Exi Min Machines Disabled 1 | . 1 . . . Max in Single Turn 1 | . 1 . . . Machines Sabotaged . | . . . . . Garrisons Compromised . | . . . . . Overloaded Fab Kills . | . . . . . Hacking | -11 -10 -10 -10 -9 --------- Run | Scr Mat Min Exi Min Machines Accessed 4 | . 2 . 2 . Terminals 2 | . 2 . . . Fabricators . | . . . . . Repair Stations . | . . . . . Recycling Units . | . . . . . Scanalyzers . | . . . . . Garrison Access . | . . . . . Total Hacks 7 | . 5 . 2 . Successful 5 | . 3 . 2 . Failed 2 | . 2 . . . Catastrophic . | . . . . . Database Lockouts . | . . . . . Manual 1 | . . . 1 . Terminals 5 | . 5 . . . Fabricators . | . . . . . Repair Stations . | . . . . . Recycling Units . | . . . . . Scanalyzers . | . . . . . Garrison Access . | . . . . . Terminal Hacks 5 | . 3 . 2 . Record 2 | . . . 2 . Prototype ID Bank 1 | . 1 . . . Alert Level 2 | . 2 . . . Fabricator Hacks . | . . . . . Repair Station Hacks . | . . . . . Recycling Unit Hacks . | . . . . . Scanalyzer . | . . . . . Garrison Access Hacks . | . . . . . Unauthorized Hacks . | . . . . . Terminals . | . . . . . Fabricators . | . . . . . Repair Stations . | . . . . . Recycling Units . | . . . . . Scanalyzers . | . . . . . Garrison Access . | . . . . . Data Cores Recovered . | . . . . . Used . | . . . . . Hacking Detections 2 | . 2 . . . Full Trace Events . | . . . . . Feedback Events . | . . . . . Feedback Blocked . | . . . . . Robot Schematics Acquired . | . . . . . Robots Built . | . . . . . Authchips . | . . . . . Time . | . . . . . Total Robot Build Rating . | . . . . . Part Schematics Acquired . | . . . . . Parts Built . | . . . . . Authchips . | . . . . . Time . | . . . . . Total Part Build Rating . | . . . . . Parts Repaired . | . . . . . Time . | . . . . . Parts Recycled . | . . . . . Recycled Matter . | . . . . . Retrieved Matter . | . . . . . Retrieved Components . | . . . . . Parts Scanalyzed . | . . . . . Part Schematics Acquired . | . . . . . Parts Damaged . | . . . . . Bothacking | -11 -10 -10 -10 -9 ------------ Run | Scr Mat Min Exi Min Used RIF Installer . | . . . . . Robots Hacked . | . . . . . Non-combat . | . . . . . Combat . | . . . . . Robot Hacks Applied . | . . . . . Relay Couplers Released . | . . . . . Fabnet Peak Effective % . | . . . . . Robots Rewired . | . . . . . Allies Hacked . | . . . . . Hacks Repelled . | . . . . . Allies | -11 -10 -10 -10 -9 -------- Run | Scr Mat Min Exi Min Total Allies 3 | . . . . 3 Largest Group 3 | . . . . 3 Highest-Rated Group 40 | . . . . 40 Highest-Rated Ally 16 | . . . . 16 Total Orders . | . . . . . Ally Attacks 15 | . . . . 15 Total Damage 149 | . . . . 149 Kills 2 | . . . . 2 Allies Corrupted . | . . . . . Allies Melted . | . . . . . Intel | -11 -10 -10 -10 -9 ------- Run | Scr Mat Min Exi Min Robot Analysis Total . | . . . . . Derelict Logs Recovered 1 | . . 1 . . Drone Launches . | . . . . . Drone Recoveries . | . . . . . Exploration | -11 -10 -10 -10 -9 ------------- Run | Scr Mat Min Exi Min Turns Passed 2195 | 138 474 540 793 250 Spaces Moved 1498 | 89 330 273 647 159 Core 3 | 3 . . . . Treads . | . . . . . Legs 1495 | 86 330 273 647 159 Wheels . | . . . . . Hover . | . . . . . Flight . | . . . . . Fastest Speed 50 | 50 120 120 120 120 Average Speed 120 | 117 120 121 120 120 Slowest Speed 190 | 120 120 190 120 120 Overloaded Moves . | . . . . . Propulsion Burnouts . | . . . . . Robots Hopped . | . . . . . Cave-ins Triggered . | . . . . . Exploration Rate (%) 42 | 5 60 21 93 35 Regions Visited 4 Branch Regions 3 Pre-discovered Areas 1 | . . 1 . . Known Exits Taken . | . . . . . Unknown Exits Taken 4 | 1 1 1 1 . Scrap Searched 1 | . . . . 1 Spaces Dug 9 | . . 9 . . Terrain Destroyed 54 | . 9 45 . . Melee . | . . . . . Projectile . | . . . . . AOE 54 | . 9 45 . . Terrain Rammed . | . . . . . Walls Destroyed . | . . . . . Machines Disabled . | . . . . . Actions | -11 -10 -10 -10 -9 --------- Run | Scr Mat Min Exi Min Total 1759 | 107 385 394 664 209 Wait 98 | . 16 46 . 36 Move 1494 | 88 329 272 646 159 Hop . | . . . . . Pick Up 27 | 5 10 5 6 1 Fast Attach 18 | 7 2 4 5 . Attach 6 | . . 4 . 2 Detach 4 | 1 1 1 1 . Swap 12 | . 6 6 . . Drop 23 | . 9 7 6 1 Fire 67 | 6 12 49 . . Melee 10 | . . . . 10 Ram . | . . . . . Kick . | . . . . . Crush . | . . . . . Escape Stasis . | . . . . . Rewire . | . . . . . Trap . | . . . . . Miscellaneous . | . . . . . Route ------- -11/Scrapyard -10/Materials (discovered 4 exits: [*Mat x3] / [*Min]) -10/Mines -10/Exiles (discovered 2 exits: [*Min x2]) -9/Mines History --------- Turn | Location | Event 6 | -11/Scrapyard | Discovered new exit (range 14) 139 | -11/Scrapyard | Entered Materials 226 | -10/Materials | Discovered new exit (range 9) 317 | -10/Materials | Build established: Mutant 402 | -10/Materials | Discovered new exit (range 6) 536 | -10/Materials | Discovered new exit (range 15) 548 | -10/Materials | Discovered new exit (range 10) 613 | -10/Materials | Entered Mines 701 | -10/Mines | Core integrity fell below 50% 729 | -10/Mines | Lost 5 parts (1p1n3w) 788 | -10/Mines | A weapon hastily lodged in a ceiling crevice suddenly fell to the ground 989 | -10/Mines | Learned location of Mines (-9) 1146 | -10/Mines | Deemed a non-threat by the Exiles lab entrance 1147 | -10/Mines | Discovered new exit (range 5) 1153 | -10/Mines | Entered Exiles 1171 | -10/Exiles | Discovered new exit (range 15) 1210 | -10/Exiles | Met 8R-AWN 1235 | -10/Exiles | Met EX-HEX 1295 | -10/Exiles | Met EX-DEC 1331 | -10/Exiles | Visited The Gauntlet 1342 | -10/Exiles | Build established: Scavenger-Mutant 1549 | -10/Exiles | Discovered new exit (range 14) 1656 | -10/Exiles | Met EX-BIN 1684 | -10/Exiles | Aligned with FarCom system 1685 | -10/Exiles | Given EX-Vault access code 1745 | -10/Exiles | Opened EX-Vault 1780 | -10/Exiles | Found Prototype Device 1780 | -10/Exiles | Identified PSU Rigger 1804 | -10/Exiles | Found Prototype Slashing Weapon 1804 | -10/Exiles | Identified Longsword +1 1809 | -10/Exiles | Found Prototype Device 1809 | -10/Exiles | Identified Cloak of Protection 1857 | -10/Exiles | Warned to stay clear of 0b10 Research branches 1946 | -10/Exiles | Left Exiles lab with Longsword +1 1946 | -10/Exiles | Entered Mines 2007 | -9/Mines | Assisted by bots powering up and referring to "LRC-V3" 2106 | -9/Mines | Assembled infested the area 2111 | -9/Mines | Assisted by a Guerilla fighting off Assembled 2153 | -9/Mines | Core integrity fell below 20% 2196 | -9/Mines | Destroyed by as-04450 with Assembled Rifle Last Messages --------------- 02124_ Trooper 2b destroyed. 02124_ as-51331 destroyed. 02125_ as-90073 sneak attacks. 02125_ R-06 Scavenger system corrupted by crushing effect. 02125_ as-51890 sneak attacks. 02125_ R-06 Scavenger destroyed. 02129_ Destroyed Asb. Hover Unit. 02129_ as-60557 destroyed. 02131_ Acquired 19 matter. 02148_ System corrupted: Energy discharge (-83). 02156_ Sml. Laser destroyed. 02164_ System corrupted: Lgt. Assault Rifle rejected. 02165_ as-45669 destroyed. 02166_ Acquired 20 matter. 02185_ Ion Engine destroyed. 02189_ as-08585 destroyed. 02191_ Destroyed Asb. Heavy Rifle. 02193_ as-63181 destroyed. 02195_ Destroyed Asb. F-torch. 02195_ as-73865 destroyed. Map ----- +----------------------------------------------------+ | ##???????????????????????????????????????? | | ## ##??????????????????????????????????????? | | ##### ##?????????????????????????????????????? | | #???# #?????????????????????????????????????? | | ??### ##????????????????????????????????????? | | ??# ##???????????????????????????????????? | | ??# #???????????????????????????????????? | | ??# #???????????????????????????????????? | | ####### #???????????????????????????????????? | | ##???#### ##???????????????????????????????????? | | ##?????####????????????????????????????????????? | | #?????????????????????????????????????????????? | | #?????????????????????????????????????????????? | | ##?????????????????????????????????????????????? | | ###???####???????????????????????????????????????? | | #??#### ##??????????????????????????????????????? | | ??## ####?###???????????????????????????????? | | ??# ### ???????????????????????????????? | | ??## ### ## #???????????????????????????????? | | ???## #?## ## #???????????????????????????????? | | ????# #??## ### #####???????????????????????????? | | ????# #???# ##?# #???????????????????????????? | | ????# #?### #### ### #???????????????????????????? | | ????# #?# [ #?# ######??????????????????????? | | ????# #?# ########?# %a%#??????????????????????? | | ##### #?# ?????????######@#??????????????????????? | | #?#???????????????# #??????????????????????? | | #######?????????????????# #??????????????s???????? | | ????????????????????????#t ?????????????s????????? | | #???????????????????????# #?????????????s????????? | | ######??????????????????# #??????????????????????? | | ##?????????????????# #??????????????????????? | | #?????????????????# #??????????????????????? | | !#?????????????????# #??????????????????????? | | %!%%=??????????????? ???????????????????????? | | *= %#?????????????? ???????????????????????? | | ### #??????????????#???????????????????????? | | ???# ??????????????????????????????????????? | | ???? ???????????????????????????????????????? | | ????? ???????????????????????????????????????? | | ?????? ????????????????????????????????????????? | | ??????? ????????????????????????????????????????? | | ?????????????????????????????????????????????????? | | ?????????????????????????????????????????????????? | | ?????????????????????????????????????????????????? | | ?????????????????????????????????????????????????? | | ?????????????????????????????????????????????????? | | ?????????????????????????????????????????????????? | | ?????????????????????????????????????????????????? | | ?????????????????????????????????????????????????? | +----------------------------------------------------+ Best States ------------- Heat Dissipation 25 Energy Generation 10 Energy Capacity 250 Matter Stores 300 Matter Capacity 300 Sight Range 16 Terrain Scan Density 10 Cloak Strength 5 Evasion (%) 55 Targeting Accuracy 5 Item Schematics ----------------- None Robot Schematics ------------------ None Fabricated ------------ Nothing Alien Tech Used ----------------- None Achievements -------------- None Challenges ------------ None Game ------ Seed StasisLobotomyLeg Manual? 0 Play Time 00:55:57 Cumulative 34.1 hours Start 2022.11.15 @ 20:15:29 End 2022.11.17 @ 01:01:53 Sessions 3 Manual Loads 0 Difficulty Rogue Special Mode None Game No. 16 Rogue 16 Adventurer 0 Explorer 0 Win Type - Total 0 Types 0/0/0/0/0/0/0/0/0 Lore% 21 Gallery% 24 Achievement% 22 Wizard Run 0 Options --------- ASCII 1 Keyboard 1 Movement Numpad Keybinds 0 Fullscreen 1 Font 18/TerminusBold Map View 76x50 Tactical HUD 1 Map Filters NONE Filters NONE Steam 1 RUN: 7c40373a-d05e-49e6-bd95-448cc7105b06